bitfinex/quotes_BTCUSD_20240620
["timestamp","ask_amount","ask_price","bid_price","bid_amount"]
[1718894092055,0.001,65083.0,65082.0,0.78284311]
[1718894092262,0.1,65106.0,65098.0,0.01]
[1718894092468,0.1,65107.0,65100.0,0.01]
[1718894092673,0.01,65111.0,65101.0,0.15256112]
[1718894092855,0.01,65111.0,65102.0,0.01]
[1718894093063,0.01,65111.0,65089.0,0.01]
[1718894093064,0.001,65083.0,65082.0,0.01648199]
[1718894093466,0.001,65083.0,65082.0,0.01748199]
[1718894093868,0.01,65095.0,65082.0,0.00948199]
[1718894094128,0.09352859,65117.0,65085.0,0.01]
[1718894094129,0.01,65097.0,65085.0,0.01]
[1718894094338,0.01,65103.0,65093.0,0.01]
[1718894094556,0.3168,65108.0,65097.0,0.01]
[1718894094557,0.1,65102.0,65097.0,0.01]
[1718894094757,0.1,65102.0,65086.0,0.16256112]
[1718894094758,0.1,65102.0,65096.0,0.01]
[1718894094961,0.1,65102.0,65093.0,0.01]
[1718894095168,0.1,65102.0,65097.0,0.01]
[1718894095376,0.1,65102.0,65098.0,0.16256112]
[1718894095579,0.1,65104.0,65098.0,0.16256112]
[1718894095786,0.1,65104.0,65099.0,0.01]
[1718894096003,0.1,65104.0,65100.0,0.71796112]
[1718894096993,0.102,65104.0,65100.0,0.71796112]
[1718894097155,0.01440933,65110.0,65100.0,0.71796112]
[1718894098017,0.01440933,65110.0,65100.0,0.71996112]
[1718894098241,0.08375026,65110.0,65100.0,0.72096112]
[1718894098447,0.07628172,65101.0,65100.0,0.003]
[1718894098580,0.88528172,65101.0,65100.0,0.001]
[1718894098779,1.05467973,65101.0,65100.0,0.001]
[1718894099097,1.04630486,65101.0,65100.0,0.001]
[1718894099697,0.01,65093.0,65082.0,0.00948199]
[1718894099895,0.01,65095.0,65083.0,0.15256112]
[1718894100097,0.01,65094.0,65083.0,0.15256112]
[1718894100299,0.01,65090.0,65083.0,0.15256112]
[1718894100726,0.0785168,65099.0,65082.0,0.00948199]
[1718894100727,0.2722,65086.0,65082.0,0.00948199]
[1718894100927,0.01,65084.0,65082.0,0.00948199]
[1718894101289,0.1,65085.0,65076.0,0.00948199]
[1718894101290,0.01,65081.0,65076.0,0.00948199]
[1718894101656,0.01,65080.0,65076.0,0.00948199]
[1718894102035,0.01,65081.0,65076.0,0.00948199]
[1718894102215,0.01,65077.0,65076.0,0.00948199]
[1718894103721,0.011,65077.0,65076.0,0.01948199]
[1718894104151,0.01,65077.0,65076.0,0.00948199]
[1718894104589,0.6002,65077.0,65076.0,0.01948199]
[1718894104789,0.79383682,65077.0,65076.0,0.01948199]
[1718894105010,0.94639794,65077.0,65076.0,0.01948199]
[1718894105212,1.28069794,65077.0,65076.0,0.01948199]
[1718894105413,1.18069794,65077.0,65076.0,0.01948199]
[1718894105618,1.17992744,65077.0,65076.0,0.01948199]
[1718894106116,1.17892744,65077.0,65076.0,0.00948199]
[1718894106338,0.01,65069.0,65068.0,0.009471]
[1718894107094,0.12784632,65069.0,65068.0,0.009471]
[1718894107284,0.94700744,65069.0,65068.0,0.009471]
[1718894107650,0.84700744,65069.0,65068.0,0.009471]
[1718894107850,0.82916112,65069.0,65068.0,0.009471]
[1718894108055,0.82916112,65069.0,65068.0,0.010471]
[1718894108056,0.94921333,65069.0,65068.0,0.010471]
[1718894108839,1.09921333,65069.0,65068.0,0.010471]
[1718894109039,1.14921333,65069.0,65068.0,0.010471]
[1718894109379,1.14921333,65069.0,65068.0,0.00620555]
[1718894109604,1.17221333,65069.0,65068.0,0.00520555]
[1718894109744,1.21412399,65069.0,65068.0,0.00520555]
[1718894110147,1.13354102,65069.0,65068.0,0.00520555]
[1718894110370,0.73689076,65069.0,65068.0,0.00520555]
[1718894110552,0.75089076,65069.0,65068.0,0.00620555]
[1718894110757,0.75089076,65069.0,65068.0,0.00520555]
[1718894110758,0.7449801,65069.0,65068.0,0.00520555]
[1718894111296,1.06471998,65069.0,65068.0,0.00100001]
[1718894111492,1.16471998,65069.0,65068.0,0.00100001]
[1718894111668,1.06471998,65069.0,65068.0,0.00100001]
[1718894111872,1.01471998,65069.0,65068.0,0.00100001]
[1718894112301,1.06471998,65069.0,65068.0,0.00100001]
[1718894112497,1.11471998,65069.0,65068.0,0.00100001]
[1718894112697,1.15310931,65069.0,65068.0,0.00100001]
[1718894112909,1.16710931,65069.0,65068.0,0.00200001]
[1718894113115,1.18787874,65069.0,65068.0,0.00200001]
[1718894113323,1.17387874,65069.0,65068.0,0.00100001]
[1718894113527,1.17387874,65069.0,65068.0,0.00200001]
[1718894113732,1.18787874,65069.0,65068.0,0.00200001]
[1718894113905,1.07387874,65069.0,65068.0,0.00100001]
[1718894114096,1.17387874,65069.0,65068.0,0.00100001]
[1718894114290,1.17387874,65069.0,65058.0,0.009493]
[1718894114291,0.16,65059.0,65058.0,0.009493]
[1718894114491,1.09794055,65059.0,65058.0,0.009493]
[1718894115187,0.01,65047.0,65028.0,0.45216827]
[1718894115400,0.01,65047.0,65029.0,0.15256112]
[1718894116418,0.01,65045.0,65029.0,0.15256112]
[1718894117104,0.01,65042.0,65029.0,0.15256112]
[1718894117515,0.02737,65041.0,65029.0,0.15256112]
[1718894117957,0.1,65043.0,65029.0,0.15256112]
[1718894118152,0.1,65043.0,65029.0,0.16256112]
[1718894118355,0.1,65043.0,65031.0,0.2572]
[1718894118554,0.001,65045.0,65032.0,0.15256112]
[1718894118732,0.011,65045.0,65032.0,0.15256112]
[1718894119101,0.08628172,65044.0,65031.0,0.2572]
[1718894119273,0.01982817,65043.0,65031.0,0.2572]
[1718894119432,0.01082817,65043.0,65031.0,0.2572]
[1718894119857,0.01082817,65043.0,65032.0,0.15256112]
[1718894119858,0.001,65042.0,65032.0,0.15256112]
[1718894120042,0.2343,65039.0,65032.0,0.16256112]
[1718894120239,0.2343,65039.0,65033.0,0.01]
[1718894120486,0.001,65043.0,65041.0,0.01]
[1718894120696,0.001,65043.0,65042.0,0.48956112]
[1718894120888,0.001,65043.0,65042.0,0.52256112]
[1718894121487,0.01763131,65063.0,65043.0,0.01]
[1718894121691,0.45769034,65057.0,65044.0,0.15256112]
[1718894121896,0.05625077,65057.0,65044.0,0.15256112]
[1718894122091,0.07628172,65052.0,65042.0,0.327]
[1718894122268,0.2442,65051.0,65041.0,0.476]
[1718894122471,0.2542,65051.0,65041.0,0.476]
[1718894122811,0.2442,65051.0,65041.0,0.476]
[1718894122965,0.06488817,65050.0,65041.0,0.476]
[1718894123151,0.06488817,65050.0,65036.0,0.5812]
[1718894123152,0.1,65058.0,65042.0,0.16256112]
[1718894123385,0.31815512,65065.0,65043.0,0.5626]
[1718894123386,0.1,65064.0,65043.0,0.5626]
[1718894123578,0.006,65057.0,65044.0,0.16256112]
[1718894123791,0.006,65057.0,65045.0,0.01]
[1718894124000,0.006,65057.0,65048.0,0.01]
[1718894124234,0.006,65057.0,65047.0,0.5626]
[1718894124432,0.006,65057.0,65048.0,0.15256112]
[1718894124855,0.006,65057.0,65049.0,0.023]
[1718894124856,0.001,65050.0,65049.0,0.023]
[1718894125056,0.006,65057.0,65049.0,0.18556112]
[1718894125267,0.006,65057.0,65050.0,0.15256112]
[1718894125884,0.00592018,65057.0,65050.0,0.15256112]
[1718894126354,0.00592018,65057.0,65042.0,0.2462]
[1718894126355,0.04653202,65057.0,65042.0,0.2462]
[1718894126524,0.01788029,65056.0,65043.0,0.15256112]
[1718894126743,0.0140694,65055.0,65043.0,0.15256112]
[1718894127159,0.07628172,65053.0,65030.0,0.5779]
[1718894127357,0.01,65053.0,65031.0,0.15256112]
[1718894127510,0.1,65054.0,65043.0,0.02]
[1718894127713,0.01774045,65053.0,65044.0,0.02]
[1718894127921,0.01774045,65053.0,65045.0,0.17256112]
[1718894128130,0.01774045,65053.0,65050.0,0.001]
[1718894128551,0.01774045,65053.0,65040.0,0.02]
[1718894128755,0.3129,65052.0,65040.0,0.02]
[1718894128912,0.01774045,65051.0,65040.0,0.02]
[1718894129473,0.11774045,65051.0,65040.0,0.02]
[1718894129654,0.01774045,65050.0,65039.0,0.02]
[1718894129847,0.01774045,65050.0,65039.0,0.17256112]
[1718894130049,0.01774045,65050.0,65040.0,0.02]
[1718894130050,0.04306405,65050.0,65040.0,0.02]
[1718894130258,0.01823257,65049.0,65043.0,0.003]
[1718894130465,0.27333257,65049.0,65043.0,0.003]
[1718894130670,0.09116223,65048.0,65043.0,0.003]
[1718894130870,0.01823257,65047.0,65039.0,0.15256112]
[1718894131037,0.01823257,65047.0,65031.0,0.02]
[1718894131237,0.01823257,65047.0,65040.0,0.003]
[1718894131238,0.04893263,65046.0,65040.0,0.003]
[1718894131487,0.01823257,65045.0,65040.0,0.003]
[1718894131657,0.01823257,65045.0,65032.0,0.15256112]
[1718894131658,0.01823257,65045.0,65039.0,0.006]
[1718894132083,0.01823257,65045.0,65044.0,0.02]
[1718894132282,0.1,65047.0,65046.0,0.02]
[1718894132482,0.01829072,65047.0,65046.0,0.17256112]
[1718894132682,0.01829072,65047.0,65046.0,0.17832753]
[1718894134088,0.01829072,65049.0,65048.0,0.02]
[1718894134428,0.1,65057.0,65049.0,0.02]
[1718894134841,0.0194175,65050.0,65049.0,0.0257597]
[1718894135061,0.01841653,65050.0,65049.0,0.0257597]
[1718894135615,0.05,65068.0,65049.0,0.0257597]
[1718894135616,0.1,65059.0,65055.0,0.02]
[1718894135819,0.019071,65058.0,65056.0,0.15256112]
[1718894136020,0.01730022,65070.0,65058.0,0.02]
[1718894136221,0.01906742,65069.0,65059.0,0.15256112]
[1718894136537,0.02737002,65081.0,65059.0,0.15256112]
[1718894136538,0.01906742,65068.0,65063.0,0.01]
[1718894136671,0.2632,65079.0,65064.0,0.15256112]
[1718894136672,0.01906742,65067.0,65064.0,0.15256112]
[1718894137050,0.2632,65079.0,65065.0,0.10200563]
[1718894137051,0.01906742,65066.0,65065.0,0.10200563]
[1718894137258,0.01906742,65066.0,65065.0,0.17828503]
[1718894137465,0.2496,65083.0,65065.0,0.25456675]
[1718894137668,0.02496,65082.0,65067.0,0.02]
[1718894137867,0.04360746,65082.0,65069.0,0.02]
[1718894138041,0.04360746,65082.0,65071.0,0.02]
[1718894138269,0.06075075,65081.0,65072.0,0.02]
[1718894138385,0.06075075,65081.0,65072.0,0.00570826]
[1718894138386,0.01864746,65080.0,65072.0,0.00570826]
[1718894138581,0.01864746,65080.0,65070.0,0.15256112]
[1718894138780,0.03716133,65079.0,65073.0,0.00570602]
[1718894138992,0.01864746,65078.0,65070.0,0.15256112]
[1718894140088,0.01846366,65077.0,65072.0,0.02]
[1718894140532,0.01846366,65076.0,65072.0,0.02]
[1718894140665,0.06075075,65081.0,65070.0,0.17256112]
[1718894140666,0.01846366,65075.0,65070.0,0.17256112]
[1718894140848,0.01846366,65074.0,65073.0,0.00570602]
[1718894141056,0.01846366,65080.0,65070.0,0.17256112]
[1718894141256,0.06075075,65081.0,65070.0,0.17256112]
[1718894141257,0.001,65077.0,65073.0,0.00570602]
[1718894141507,0.01846366,65076.0,65072.0,0.011]
[1718894141709,0.01846366,65075.0,65074.0,0.00570379]
[1718894141950,0.1,65080.0,65070.0,0.18256112]
[1718894141951,0.01846366,65079.0,65073.0,0.00570602]
[1718894142157,0.01846366,65079.0,65070.0,0.16256112]
[1718894142158,0.001,65075.0,65074.0,0.00570379]
[1718894142343,0.001,65075.0,65070.0,0.17456112]
[1718894142344,0.01946366,65075.0,65070.0,0.17456112]
[1718894142503,0.001,65075.0,65070.0,0.17456112]
[1718894142908,0.0205174,65074.0,65071.0,0.0057105]
[1718894143931,0.0205174,65074.0,65072.0,0.012]
[1718894144136,0.0215174,65074.0,65073.0,0.014]
[1718894144341,0.0215174,65074.0,65073.0,0.01970602]
[1718894144729,0.0215174,65074.0,65073.0,0.00570602]
[1718894144913,0.04464695,65079.0,65070.0,0.15256112]
[1718894145115,0.02047145,65074.0,65071.0,0.0057105]
[1718894145316,0.58867145,65073.0,65071.0,0.014]
[1718894145520,0.02094179,65072.0,65071.0,0.014]
[1718894146186,0.41435597,65072.0,65071.0,0.014]
[1718894146398,0.41435597,65072.0,65055.0,0.02]
[1718894146605,0.41435597,65072.0,65056.0,0.02]
[1718894146606,0.2343,65060.0,65056.0,0.02]
[1718894146828,0.02094179,65059.0,65056.0,0.02]
[1718894147485,0.0196172,65058.0,65056.0,0.02]
[1718894147685,0.0196172,65058.0,65055.0,0.02]
[1718894147896,0.0196172,65057.0,65055.0,0.02]
[1718894148097,0.0194672,65056.0,65055.0,0.02]
[1718894148313,0.02343,65059.0,65055.0,0.02]
[1718894148630,0.02443,65059.0,65056.0,0.012]
[1718894148844,0.02343,65059.0,65049.0,0.02]
[1718894149017,0.02343,65059.0,65049.0,0.17256112]
[1718894149222,0.001,65057.0,65055.0,0.012]
[1718894149804,0.001,65057.0,65055.0,0.026]
[1718894150252,0.001,65057.0,65056.0,0.02]
[1718894150838,0.001,65059.0,65058.0,0.02]
[1718894151011,0.002,65059.0,65058.0,0.02]
[1718894151436,0.001,65059.0,65058.0,0.02]
[1718894151601,0.1,65063.0,65058.0,0.02]
[1718894151805,0.1,65063.0,65059.0,0.02]
[1718894152213,0.06894565,65061.0,65055.0,0.003]
[1718894152429,0.14086397,65061.0,65055.0,0.003]
[1718894152635,0.001,65059.0,65058.0,0.01]
[1718894153262,0.04696571,65059.0,65058.0,0.01]
[1718894153799,0.001,65059.0,65058.0,0.01]
[1718894153971,0.001,65059.0,65058.0,0.013]
[1718894154176,0.04596571,65059.0,65058.0,0.003]
[1718894154378,0.14596571,65060.0,65058.0,0.003]
[1718894154695,0.04596571,65060.0,65059.0,0.007]
[1718894154901,0.04596571,65060.0,65058.0,0.003]
[1718894155100,0.04596812,65060.0,65058.0,0.003]
[1718894155306,0.04596812,65059.0,65058.0,0.003]
[1718894155512,0.19193625,65059.0,65058.0,0.003]
[1718894155701,0.19294577,65059.0,65058.0,0.014]
[1718894155904,0.19294577,65059.0,65040.0,0.57350687]
[1718894155905,0.19294577,65059.0,65040.0,0.5757]
[1718894156113,0.19294577,65059.0,65041.0,0.15256112]
[1718894156114,0.04597576,65046.0,65041.0,0.15256112]
[1718894156225,0.04597576,65044.0,65041.0,0.15833871]
[1718894156428,0.02965865,65044.0,65041.0,0.17833871]
[1718894156626,0.06896365,65048.0,65042.0,0.02]
[1718894156884,0.06896365,65048.0,65043.0,0.00577312]
[1718894157338,0.06896365,65047.0,65044.0,0.00548223]
[1718894157554,0.06896197,65047.0,65044.0,0.00548223]
[1718894157728,0.06896197,65047.0,65041.0,0.003]
[1718894157933,0.06896197,65047.0,65036.0,0.23403424]
[1718894158142,0.01996115,65046.0,65042.0,0.0054867]
[1718894158343,0.01996115,65046.0,65037.0,0.15256112]
[1718894158344,0.12850402,65046.0,65037.0,0.15256112]
[1718894158552,0.01996115,65045.0,65043.0,0.001]
[1718894158753,0.01996115,65044.0,65037.0,0.15256112]
[1718894158921,0.01996115,65043.0,65038.0,0.00549565]
[1718894159115,0.06896197,65046.0,65038.0,0.00549565]
[1718894159116,0.01996115,65042.0,65038.0,0.15805677]
[1718894159361,0.01996115,65041.0,65038.0,0.15805677]
[1718894159591,0.01996115,65040.0,65038.0,0.15805677]
[1718894159729,0.01996115,65039.0,65038.0,0.15805677]
[1718894159935,0.01996115,65045.0,65038.0,0.15805677]
[1718894160136,0.001,65048.0,65038.0,0.15805677]
[1718894160137,0.06895532,65046.0,65038.0,0.15805677]
[1718894160339,0.01996115,65045.0,65038.0,0.15805677]
[1718894161127,0.001,65040.0,65038.0,0.00549565]
[1718894161304,0.01996115,65039.0,65038.0,0.00549565]
[1718894161504,0.01996115,65039.0,65037.0,0.001]
[1718894161728,0.01996115,65039.0,65027.0,0.009493]
[1718894161729,0.05963939,65039.0,65027.0,0.009493]
[1718894161844,0.27460378,65039.0,65038.0,0.00549565]
[1718894162044,0.40436562,65039.0,65038.0,0.001]
[1718894162296,0.02,65036.0,65027.0,0.009493]
[1718894162493,0.06897216,65031.0,65027.0,0.009493]
[1718894162699,0.06897216,65031.0,65028.0,0.00551803]
[1718894162700,0.16897216,65031.0,65028.0,0.00551803]
[1718894163121,0.16897216,65031.0,65027.0,0.009493]
[1718894163533,0.01942891,65030.0,65028.0,0.00551803]
[1718894163742,0.01942891,65030.0,65027.0,0.009493]
[1718894164085,0.01942891,65030.0,65028.0,0.00551803]
[1718894164289,0.06656532,65030.0,65028.0,0.00551803]
[1718894164499,0.25372891,65029.0,65027.0,0.009493]
[1718894164700,0.01942891,65028.0,65027.0,0.009493]
[1718894164907,0.2343,65029.0,65027.0,0.009493]
[1718894165073,0.11420127,65028.0,65027.0,0.009493]
[1718894165903,0.11420127,65028.0,65027.0,0.010493]
[1718894166047,0.11420127,65028.0,65027.0,0.009493]
[1718894166471,0.11520127,65028.0,65027.0,0.010493]
[1718894166850,0.11420127,65028.0,65027.0,0.009493]
[1718894167053,0.80590127,65028.0,65027.0,0.009493]
[1718894167499,0.80553262,65028.0,65027.0,0.009493]
[1718894167710,0.80753262,65028.0,65027.0,0.011493]
[1718894168064,0.80653262,65028.0,65027.0,0.010493]
[1718894168584,0.82753262,65028.0,65027.0,0.011493]
[1718894168911,0.78019269,65028.0,65027.0,0.011493]
[1718894169848,0.76019269,65028.0,65027.0,0.011493]
[1718894170096,0.75967501,65028.0,65027.0,0.011493]
[1718894171544,0.77967501,65028.0,65027.0,0.011493]
[1718894171764,0.75967501,65028.0,65027.0,0.011493]
[1718894173385,0.86107251,65028.0,65027.0,0.011493]
[1718894173804,0.75967501,65028.0,65027.0,0.011493]
[1718894174005,0.16797501,65028.0,65027.0,0.011493]
[1718894174235,0.25007501,65028.0,65027.0,0.01701327]
[1718894174435,0.35007501,65028.0,65027.0,0.01701327]
[1718894174666,0.35007501,65028.0,65027.0,0.011493]
[1718894174667,0.38708251,65028.0,65027.0,0.011493]
[1718894175294,0.96078251,65028.0,65027.0,0.004151]
[1718894175491,0.96078251,65028.0,65017.0,0.009493]
[1718894175492,0.02,65025.0,65017.0,0.009493]
[1718894175633,0.06597501,65024.0,65017.0,0.009493]
[1718894175837,0.06597501,65023.0,65017.0,0.009493]
[1718894176049,0.01,65021.0,65017.0,0.009493]
[1718894176225,0.06597501,65020.0,65017.0,0.009493]
[1718894176431,0.06597501,65019.0,65017.0,0.009493]
[1718894176642,0.02,65021.0,65017.0,0.009493]
[1718894176861,0.0776529,65020.0,65017.0,0.010493]
[1718894177066,0.5614,65018.0,65017.0,0.009493]
[1718894177281,0.6814,65018.0,65017.0,0.009493]
[1718894177520,0.6614,65018.0,65017.0,0.010493]
[1718894177793,0.79639646,65018.0,65017.0,0.009493]
[1718894178279,0.72705646,65018.0,65017.0,0.010493]
[1718894178659,0.89961758,65018.0,65017.0,0.010493]
[1718894179696,0.89961758,65018.0,65017.0,0.009493]
[1718894180135,0.90192913,65018.0,65017.0,0.009493]
[1718894180378,0.90092913,65018.0,65017.0,0.009493]
[1718894180593,1.00722204,65018.0,65017.0,0.009493]
[1718894180818,1.01322204,65018.0,65017.0,0.009493]
[1718894181203,1.01822204,65018.0,65017.0,0.009493]
[1718894181379,0.89192913,65018.0,65017.0,0.009493]
[1718894181582,0.90592913,65018.0,65017.0,0.009493]
[1718894181796,0.73336801,65018.0,65017.0,0.009493]
[1718894181989,0.17196801,65018.0,65017.0,0.009493]
[1718894182149,0.07196801,65018.0,65017.0,0.009493]
[1718894182571,0.0221968,65018.0,65017.0,0.01503566]
[1718894183253,0.09250186,65018.0,65017.0,0.01503566]
[1718894183454,0.08750186,65018.0,65017.0,0.01503566]
[1718894183655,0.08230506,65018.0,65017.0,0.01503566]
[1718894183771,0.07030506,65018.0,65017.0,0.01503566]
[1718894183975,0.01800216,65022.0,65017.0,0.01503566]
[1718894183976,0.07054692,65020.0,65017.0,0.01503566]
[1718894184179,0.004,65018.0,65017.0,0.01503566]
[1718894184406,0.07454692,65018.0,65017.0,0.01503566]
[1718894184605,0.08654692,65018.0,65017.0,0.01503566]
[1718894184858,0.08654692,65018.0,65017.0,0.16759678]
[1718894185070,0.016,65018.0,65017.0,0.76399678]
[1718894185276,0.08595711,65018.0,65017.0,0.76399678]
[1718894185671,0.2277,65034.0,65021.0,0.02]
[1718894185873,0.01872017,65036.0,65017.0,0.74399678]
[1718894185874,0.06927462,65033.0,65028.0,0.3319]
[1718894186136,0.06927462,65032.0,65029.0,0.17256112]
[1718894186352,0.06927462,65032.0,65029.0,0.15807692]
[1718894186579,0.06927462,65032.0,65031.0,0.02]
[1718894186709,0.00086,65036.0,65031.0,0.02]
[1718894186710,0.06927462,65035.0,65034.0,0.2166]
[1718894187083,0.0700866,65035.0,65034.0,0.37466572]
[1718894187285,0.0700866,65035.0,65034.0,0.73746572]
[1718894187516,0.07008179,65035.0,65034.0,0.73746572]
[1718894187720,0.07008115,65035.0,65034.0,1.23746572]
[1718894188351,0.07008115,65035.0,65034.0,1.19446572]
[1718894188942,0.07108115,65035.0,65034.0,1.19546572]
[1718894189795,0.07108115,65035.0,65034.0,1.20946572]
[1718894190027,0.07045605,65035.0,65034.0,1.20946572]
[1718894190784,0.07045605,65035.0,65034.0,1.22946572]
[1718894190992,0.06945605,65035.0,65034.0,1.22846572]
[1718894191192,0.06945605,65035.0,65034.0,1.20846572]
[1718894191325,0.07045605,65035.0,65034.0,1.21346572]
[1718894192587,0.070424,65035.0,65034.0,1.21346572]
[1718894193345,0.070424,65035.0,65034.0,0.0245046]
[1718894195086,0.07004416,65035.0,65034.0,0.0245046]
[1718894195687,0.06904416,65035.0,65034.0,0.17206572]
[1718894195817,0.06904416,65035.0,65034.0,0.72586572]
[1718894196017,0.06904416,65035.0,65034.0,0.74986572]
[1718894196228,0.00086,65036.0,65035.0,0.02]
[1718894196436,0.00086,65036.0,65035.0,0.35630217]
[1718894196652,0.00086,65036.0,65035.0,0.77592045]
[1718894197305,0.10315329,65052.0,65045.0,0.5644]
[1718894197537,0.10315329,65052.0,65046.0,0.15256112]
[1718894197753,0.10315329,65052.0,65046.0,0.15799584]
[1718894197754,0.2277,65048.0,65046.0,0.15799584]
[1718894197925,0.06899264,65047.0,65046.0,0.15799584]
[1718894199354,0.06999264,65047.0,65046.0,0.16299584]
[1718894200080,0.001,65047.0,65046.0,0.16299584]
[1718894200285,0.06882153,65047.0,65046.0,0.16299584]
[1718894200653,0.06882153,65047.0,65046.0,0.18299584]
[1718894201242,0.06982153,65047.0,65046.0,0.19699584]
[1718894201686,0.002,65047.0,65046.0,0.21999584]
[1718894202122,0.002,65047.0,65046.0,0.77669584]
[1718894202881,0.002,65047.0,65046.0,0.92869584]
[1718894203517,0.002,65047.0,65046.0,0.82669584]
[1718894204362,0.00286,65047.0,65046.0,0.82669584]
[1718894205573,0.00286,65047.0,65046.0,0.75669584]
[1718894205783,0.00286,65047.0,65046.0,0.73369584]
[1718894206822,0.00286,65047.0,65046.0,0.73377284]
[1718894207440,0.00286,65047.0,65046.0,0.17707284]
[1718894207702,0.06763447,65047.0,65046.0,0.17707284]
[1718894207908,0.00286,65047.0,65046.0,0.17707284]
[1718894208315,0.06847072,65047.0,65046.0,0.17707284]
[1718894208731,0.06847072,65047.0,65046.0,0.17163812]
[1718894209085,0.06847072,65047.0,65046.0,0.17706328]
[1718894210279,0.06809361,65047.0,65046.0,0.17706328]
[1718894212954,0.06863723,65047.0,65046.0,0.17706328]
[1718894215471,0.00286,65047.0,65046.0,0.17706328]
[1718894215672,0.06899779,65047.0,65046.0,0.17706328]
[1718894217450,0.25659779,65047.0,65046.0,0.17706328]
[1718894218143,0.2555396,65047.0,65046.0,0.17706328]
[1718894218749,0.0679396,65047.0,65046.0,0.17706328]
[1718894219914,0.0679396,65047.0,65046.0,0.17485884]
[1718894220733,0.00286,65047.0,65046.0,0.17485884]
[1718894220898,0.06944693,65047.0,65046.0,0.19485884]
[1718894221109,0.06944693,65047.0,65046.0,0.80835884]
[1718894221312,0.06944693,65047.0,65046.0,0.93335884]
[1718894221550,0.06944693,65047.0,65046.0,0.83135884]
[1718894222126,0.06844693,65047.0,65046.0,0.81735884]
[1718894222318,0.06844693,65047.0,65046.0,0.81713806]
[1718894222521,0.06844693,65047.0,65046.0,0.91913806]
[1718894222739,0.06744693,65047.0,65046.0,0.92813806]
[1718894223150,0.06844693,65047.0,65046.0,0.94213806]
[1718894223361,0.00186,65047.0,65046.0,0.94213806]
[1718894223565,0.0702836,65047.0,65046.0,0.84013806]
[1718894223880,0.07028327,65047.0,65046.0,0.84003806]
[1718894224115,0.07028327,65047.0,65046.0,0.94203806]
[1718894224257,0.07028327,65047.0,65046.0,0.84003806]
[1718894225079,0.07028327,65047.0,65046.0,0.74703806]
[1718894225292,0.07028327,65047.0,65046.0,0.18353806]
[1718894226095,0.06966332,65047.0,65046.0,0.18353806]
[1718894227665,0.06966332,65047.0,65046.0,0.20353806]
[1718894227873,0.06966332,65047.0,65046.0,0.87647209]
[1718894228005,0.06966332,65047.0,65046.0,0.97847209]
[1718894228210,0.06966332,65047.0,65046.0,1.34410909]
[1718894228411,1e-08,65047.0,65046.0,1.98987709]
[1718894228654,0.2541,65070.0,65061.0,0.02]
[1718894228974,0.2541,65070.0,65062.0,0.17793958]
[1718894229399,0.3227,65071.0,65063.0,0.02]
[1718894229601,0.3227,65071.0,65064.0,0.17256112]
[1718894229809,0.3227,65071.0,65064.0,0.17793511]
[1718894230027,0.05729026,65071.0,65064.0,0.15793511]
[1718894230254,0.2541,65074.0,65064.0,0.15793511]
[1718894230471,0.001,65070.0,65065.0,0.01779351]
[1718894230658,0.2541,65074.0,65066.0,0.15256112]
[1718894230893,0.2541,65074.0,65066.0,0.15793063]
[1718894231082,0.001,65071.0,65066.0,0.17793063]
[1718894231417,0.04601512,65078.0,65069.0,0.02]
[1718894231616,0.31171512,65081.0,65070.0,0.15256112]
[1718894231784,0.1876,65072.0,65070.0,0.15792169]
[1718894232756,0.2536,65071.0,65070.0,0.00536057]
[1718894232991,0.5753,65071.0,65070.0,0.00536057]
[1718894233159,0.7629,65071.0,65070.0,0.16656112]
[1718894233587,0.7629,65071.0,65070.0,0.15792169]
[1718894234601,0.3205,65076.0,65070.0,0.16692169]
[1718894234758,0.1,65075.0,65071.0,0.15256112]
[1718894235163,0.1,65075.0,65072.0,0.0053561]
[1718894235369,0.1,65075.0,65073.0,0.15256112]
[1718894235774,0.1,65075.0,65074.0,0.00535163]
[1718894235981,0.2876,65075.0,65074.0,0.15791275]
[1718894236174,0.1876,65075.0,65074.0,0.15791275]
[1718894236391,0.1876,65075.0,65074.0,0.15256112]
[1718894236594,0.1876,65075.0,65074.0,0.17456886]
[1718894236827,0.1876,65075.0,65074.0,0.15791275]
[1718894238455,0.2352446,65075.0,65074.0,0.15791275]
[1718894238677,0.2352446,65075.0,65074.0,0.15256112]
[1718894238878,0.2352446,65075.0,65074.0,0.01]
[1718894239078,0.8241446,65075.0,65074.0,0.01]
[1718894239303,1.05465087,65075.0,65074.0,0.01]
[1718894239706,1.05465087,65075.0,65074.0,0.021]
[1718894240083,0.92384824,65075.0,65074.0,0.021]
[1718894240287,0.94384824,65075.0,65074.0,0.01]
[1718894240517,0.2476,65073.0,65054.0,0.476]
[1718894240773,0.14734824,65072.0,65056.0,0.45769034]
[1718894240970,0.14734824,65072.0,65055.0,0.1589872]
[1718894240971,0.04734824,65071.0,65057.0,0.15256112]
[1718894241263,0.04734824,65070.0,65057.0,0.1589816]
[1718894241431,0.04734824,65069.0,65057.0,0.1589816]
[1718894241621,0.1876,65062.0,65057.0,0.1589816]
[1718894241822,0.1876,65062.0,65058.0,0.5767]
[1718894241823,0.04734824,65061.0,65058.0,0.5767]
[1718894242039,0.04642061,65060.0,65059.0,0.15256112]
[1718894242201,0.04642061,65071.0,65062.0,0.5]
[1718894242409,0.1,65083.0,65063.0,0.15256112]
[1718894242607,0.5817,65087.0,65064.0,0.15256112]
[1718894242608,0.04806151,65070.0,65064.0,0.15256112]
[1718894242870,0.04806151,65069.0,65067.0,0.5533]
[1718894243047,0.0460274,65075.0,65068.0,0.15256112]
[1718894243365,0.04691126,65074.0,65068.0,0.15895086]
[1718894244622,0.046804,65073.0,65068.0,0.17095086]
[1718894245217,0.0468038,65072.0,65068.0,0.17095086]
[1718894245405,0.0468038,65071.0,65068.0,0.17095086]
[1718894245618,0.04601553,65076.0,65068.0,0.17095086]
[1718894245619,0.0468038,65070.0,65068.0,0.17095086]
[1718894245816,0.0468038,65069.0,65068.0,0.15895086]
[1718894246017,0.0468038,65075.0,65068.0,0.15895086]
[1718894246224,0.0468038,65075.0,65068.0,0.17295086]
[1718894246453,0.0468038,65075.0,65070.0,0.02]